[Event "4NCL Div 1 2024-25"]
[Site "England"]
[Date "2025.04.05"]
[Round "7.19"]
[White "Bezuidenhout, Roland"]
[Black "Fernandez, Daniel Howard"]
[Result "1-0"]
[Annotator "TA"]
[ECO "A15"]
[WhiteElo "2285"]
[BlackElo "2485"]
[PlyCount "81"]
[EventDate "2024.11.23"]
[EventType "team-tourn"]
[EventCountry "ENG"]
[SourceTitle "playchess.com"]
[Source "ChessBase"]
[SourceQuality "1"]
[TimeControl "40/6000+30:3000+30"]

{[%evp 14,81,0,-1,0,0,3,-5,7,-2,0,-40,-3,-33,28,3,2,-1,18,-20,-18,-14,0,0,9,0,19,16,28,15,20,17,14,10,25,23,69,0,77,57,66,11,31,0,0,0,12,26,26,56,54,56,60,51,90,100,97,99,94,95,93,92,732,728,854,563,1183,1147,1606,1539]} 1. c4 {[%emt 0:11:06]} Nf6 {[%emt 0:10:18]} 2. g3 {[%emt 0:00:26]} c6 {[%emt 0:00:08]} 3. Nf3 {[%emt 0:00:14]} g6 {[%emt 0:00:28]} 4. b3 {[%emt 0:00:17]} d6 {[%emt 0:10:39]} 5. Bb2 {[%emt 0:01:44]} e5 {[%emt 0:02:02]} 6. Nc3 {[%emt 0:00:57]} Bg7 {[%emt 0:00:14]} 7. Bg2 {[%emt 0:00:23]} O-O {[%emt 0:00:03]} 8. O-O {[%emt 0:01:06]} a6 {[%emt 0:05:12] A15: English Opening: 1...Nf6.} 9. Qc2 {[%emt 0:04:11]} Re8 {[%emt 0:00:38]} 10. d3 {[%emt 0:06:12]} Nbd7 $146 {[%emt 0:07:05] The position is equal.} (10... d5 11. e4 d4 12. Ne2 c5 13. Kh1 Nc6 14. Nfg1 Ng4 15. h3 Nh6 16. Bc1 f5 {0-1 Kalajzic,I (2184)-Lalic,B (2440) Zagreb Hulak Memorial op 1st 2016 (5)}) 11. e4 {[%emt 0:09:09]} b5 {[%emt 0:02:58]} 12. Rad1 {[%emt 0:03:17]} Qc7 {[%emt 0:08:31]} 13. Rfe1 {[%emt 0:22:19]} Bh6 {[%emt 0:25:42]} ({Better is} 13... b4 $15 14. Na4 c5) 14. a3 {[%emt 0:10:00]} Rb8 {[%emt 0:02:56]} 15. h3 {[%emt 0:10:14]} c5 {[%emt 0:07:09] The position is symmetric and equal} 16. cxb5 {[%emt 0:03:49]} axb5 {[%emt 0:00:02]} 17. b4 {[%emt 0:00:33]} Ba6 {[%emt 0:03:13]} 18. Bc1 {[%emt 0:03:58]} Bf8 {[%emt 0:01:01]} 19. Qb3 {[%emt 0:02:23]} Rec8 {[%emt 0:05:41]} 20. Bd2 {[%emt 0:00:41]} Qd8 {[%emt 0:01:06]} 21. Bf1 {[%emt 0:00:51]} Qe8 {[%emt 0:02:48]} 22. h4 {[%emt 0:02:59]} h6 {[%emt 0:01:51]} 23. Rc1 {[%emt 0:01:42]} Kh7 {[%emt 0:04:32]} 24. Qa2 {[%emt 0:02:30]} Nb6 {[%emt 0:01:43]} (24... Ra8 $11) 25. Be3 {[%emt 0:01:13]} (25. bxc5 $14 Rxc5 26. d4 exd4 27. Nxd4) 25... cxb4 {[%emt 0:01:57]} (25... Ra8 $11) 26. axb4 $16 {[%emt 0:00:22]} Na4 {[%emt 0:00:01]} 27. Bd2 {[%emt 0:01:11]} (27. Bh3 $14) 27... Ra8 {[%emt 0:00:55]} 28. Bh3 {[%emt 0:02:49]} Nxc3 $1 {[%emt 0:00:52]} 29. Bxc3 {[%emt 0:00:12]} Rc7 {[%emt 0:01:09]} 30. Bd2 $36 {[%emt 0:02:14][%mdl 2048] White is more active.} Rxc1 {[%emt 0:01:56]} 31. Rxc1 {[%emt 0:00:10]} d5 {[%emt 0:00:01]} 32. exd5 {[%emt 0:01:59]} Bb7 {[%emt 0:00:03][%csl LRa2,LRd5]} 33. Qb2 {[%emt 0:00:44]} Bd6 {[%emt 0:00:17]} 34. Re1 {[%emt 0:00:38][%cal Rf3e5]} Bxd5 {[%emt 0:02:22]} 35. Nxe5 {[%emt 0:00:34]} Ra2 {[%emt 0:00:03] [#]} 36. Ng4 $1 {[%emt 0:03:43]} Nxg4 {[%emt 0:02:07]} (36... Rxb2 $2 37. Nxf6+ Kg7 38. Nxe8+ $18) 37. Qxa2 {[%emt 0:00:09]} (37. Rxe8 $2 {loses.} Rxb2 38. Bxg4 Rxd2 $19) 37... Qc6 {[%emt 0:00:42][%mdl 8192] This move loses the game for Black.} (37... Qxe1+ $16 38. Bxe1 Bxa2 39. Bxg4 Bb1) 38. Qb2 $18 {[%emt 0:00:37] White is clearly winning.} h5 {[%emt 0:00:01][%cal Bh6h5,Bh5g4][%mdl 32]} 39. Qd4 {[%emt 0:00:40]} f6 {[%emt 0:00:59]} 40. Bxg4 {[%emt 0:00:44][%cal Od4f6] Intending Qxf6! and mate.} hxg4 {[%emt 0:00:02]} 41. Qxf6 {[%emt 0:50:25] Weighted Error Value: White=0.28 (precise) /Black=0.78  Loses game:     	---       	Black=1      Mistake:       	White=2     	Black=3      Inaccurate:     	White=4     	Black=3      OK:         	White=9     	Black=5      Best:        	White=3     	Black=3      Strong:       	White=1     	Black=1} 1-0

[Event "4NCL Div 1 2024-25"]
[Site "England"]
[Date "2025.04.05"]
[Round "7.20"]
[White "Roberson, Peter T"]
[Black "Maycock Bates, David Henry"]
[Result "1-0"]
[Annotator "RC"]
[ECO "B13"]
[WhiteElo "2432"]
[BlackElo "2290"]
[PlyCount "115"]
[EventDate "2024.11.23"]
[EventType "team-tourn"]
[EventCountry "ENG"]
[SourceTitle "playchess.com"]
[Source "ChessBase"]
[SourceQuality "1"]
[TimeControl "40/6000+30:3000+30"]

1. Nc3 {[%emt 0:10:04]} d5 {[%emt 0:10:16]} 2. d4 {[%emt 0:00:47]} Nf6 {[%emt 0:00:17]} 3. Bf4 {[%emt 0:00:43]} c5 {[%emt 0:06:09]} 4. e3 {[%emt 0:01:41]} cxd4 {[%emt 0:00:11]} 5. exd4 {[%emt 0:00:06]} a6 {[%emt 0:00:05]} 6. Nf3 {[%emt 0:02:05]} Nc6 {[%emt 0:15:23]} 7. Ne5 {[%emt 0:00:56]} Bf5 {[%emt 0:11:38]} 8. g4 {[%emt 0:11:08]} Be6 {[%emt 0:05:11]} 9. Bg2 {[%emt 0:20:55]} h5 {[%emt 0:30:30]} 10. g5 {[%emt 0:03:54]} Nd7 {[%emt 0:02:40]} 11. g6 {[%emt 0:14:28]} Ndxe5 {[%emt 0:04:02]} 12. dxe5 {[%emt 0:01:40]} d4 {[%emt 0:00:46]} 13. gxf7+ {[%emt 0:09:26]} Bxf7 {[%emt 0:00:24]} 14. Ne4 {[%emt 0:09:36]} Bc4 {[%emt 0:11:27]} 15. b3 {[%emt 0:09:21]} Bd5 {[%emt 0:02:06]} 16. O-O {[%emt 0:02:44]} e6 {[%emt 0:04:06]} 17. Qd3 {[%emt 0:01:30]} Be7 {[%emt 0:02:05]} 18. Nd6+ {[%emt 0:02:26]} Bxd6 {[%emt 0:00:04]} 19. Qg6+ {[%emt 0:01:06]} Kf8 {[%emt 0:01:47]} 20. Bxd5 {[%emt 0:01:45]} exd5 {[%emt 0:00:26]} 21. Qf5+ {[%emt 0:01:54]} Kg8 {[%emt 0:00:02]} 22. Qe6+ {[%emt 0:00:59]} Kh7 {[%emt 0:00:13]} 23. Qf5+ {[%emt 0:00:12]} Kg8 {[%emt 0:00:07]} 24. exd6 {[%emt 0:00:06]} Qf6 {[%emt 0:00:16]} 25. Qxd5+ {[%emt 0:00:36]} Qf7 {[%emt 0:01:33]} 26. Qxf7+ {[%emt 0:02:15]} Kxf7 {[%emt 0:00:02]} 27. Rfe1 {[%emt 0:00:06]} Rhe8 {[%emt 0:00:48]} 28. h4 {[%emt 0:01:22]} Re6 {[%emt 0:01:08]} 29. Rxe6 {[%emt 0:00:12]} Kxe6 {[%emt 0:00:01]} 30. Re1+ {[%emt 0:00:27]} Kd7 {[%emt 0:00:02]} 31. Kg2 {[%emt 0:00:26]} Rf8 {[%emt 0:00:27]} 32. Bg3 {[%emt 0:00:31]} Rf5 {[%emt 0:00:05]} 33. Re4 {[%emt 0:00:19]} Rc5 {[%emt 0:00:33]} 34. Re2 {[%emt 0:00:47]} Kd8 {[%emt 0:00:04]} 35. Kf3 {[%emt 0:00:25]} d3 {[%emt 0:00:06]} 36. Re1 {[%emt 0:00:57]} Nd4+ {[%emt 0:00:35]} 37. Ke4 {[%emt 0:00:17]} dxc2 {[%emt 0:00:46]} 38. Bf4 {[%emt 0:00:02]} Nc6 {[%emt 0:02:08]} 39. Rg1 {[%emt 0:01:09]} g6 {[%emt 0:00:32]} 40. Be3 {[%emt 0:00:33]} Re5+ {[%emt 0:00:31]} 41. Kf4 {[%emt 0:28:54]} Rf5+ {[%emt 0:35:13]} 42. Ke4 {[%emt 0:02:00]} Re5+ {[%emt 0:06:50]} 43. Kf4 {[%emt 0:00:07]} Rd5 {[%emt 0:04:06]} 44. Rc1 {[%emt 0:02:02]} Nb4 {[%emt 0:00:05]} 45. a3 {[%emt 0:00:33]} Nd3+ {[%emt 0:06:21]} 46. Ke4 {[%emt 0:00:01]} Nxc1 {[%emt 0:00:15]} 47. Kxd5 {[%emt 0:00:02]} Nxb3 {[%emt 0:00:44]} 48. Ke6 {[%emt 0:00:02]} c1=Q {[%emt 0:00:28]} 49. Bb6+ {[%emt 0:00:07]} Kc8 {[%emt 0:00:04]} 50. d7+ {[%emt 0:00:04]} Kb8 {[%emt 0:00:04]} 51. d8=Q+ {[%emt 0:00:11]} Qc8+ {[%emt 0:00:05]} 52. Qxc8+ {[%emt 0:08:29]} Kxc8 {[%emt 0:00:01]} 53. Kf6 {[%emt 0:01:28]} Kd7 {[%emt 0:02:34]} 54. Kxg6 {[%emt 0:00:03]} Ke6 {[%emt 0:00:33]} 55. f4 {[%emt 0:00:38]} Nd2 {[%emt 0:00:13]} 56. f5+ {[%emt 0:00:33]} Kd7 {[%emt 0:00:06]} 57. f6 {[%emt 0:01:51]} Nf3 {[%emt 0:00:08]} 58. f7 {[%emt 0:00:31]} 1-0

[Event "4NCL Div 1 2024-25"]
[Site "England"]
[Date "2025.04.05"]
[Round "7.21"]
[White "Banerjee, Supratit"]
[Black "Price, Gwilym"]
[Result "1-0"]
[Annotator "ChessBase"]
[ECO "B45"]
[WhiteElo "2141"]
[BlackElo "2223"]
[PlyCount "53"]
[EventDate "2024.11.23"]
[EventType "team-tourn"]
[EventCountry "ENG"]
[SourceTitle "playchess.com"]
[Source "ChessBase"]
[SourceQuality "1"]
[TimeControl "40/6000+30:3000+30"]

1. e4 {[%emt 0:10:04]} c5 {[%emt 0:10:04]} 2. Nf3 {[%emt 0:00:29]} e6 {[%emt 0:00:04]} 3. d4 {[%emt 0:00:12]} cxd4 {[%emt 0:00:04]} 4. Nxd4 {[%emt 0:00:42]} Nf6 {[%emt 0:00:05]} 5. Nc3 {[%emt 0:00:30]} Nc6 {[%emt 0:00:03]} 6. Be2 {[%emt 0:00:44]} Bb4 {[%emt 0:00:08]} 7. O-O {[%emt 0:01:08]} Bxc3 {[%emt 0:00:15]} 8. bxc3 {[%emt 0:00:42]} Nxe4 {[%emt 0:00:04]} 9. Nxc6 {[%emt 0:01:09]} dxc6 {[%emt 0:06:33]} 10. Bd3 {[%emt 0:00:15]} Nf6 {[%emt 0:06:09]} 11. Ba3 {[%emt 0:15:28]} Qc7 {[%emt 0:08:55]} 12. Qf3 {[%emt 0:10:26]} c5 {[%emt 0:04:12]} 13. Rab1 {[%emt 0:11:17]} Rb8 {[%emt 0:16:24]} 14. Rfe1 {[%emt 0:24:25]} O-O {[%emt 0:03:07]} 15. c4 {[%emt 0:03:13]} e5 {[%emt 0:27:00]} 16. Qg3 {[%emt 0:03:49]} Nd7 {[%emt 0:03:37]} 17. Bb2 {[%emt 0:01:56]} f6 {[%emt 0:05:24]} 18. f4 {[%emt 0:10:09]} Re8 {[%emt 0:10:15]} 19. h4 {[%emt 0:05:35]} b6 {[%emt 0:02:42]} 20. Re2 {[%emt 0:04:20]} Bb7 {[%emt 0:01:12]} 21. Rbe1 {[%emt 0:00:45]} Re7 {[%emt 0:01:12]} 22. Qg4 {[%emt 0:02:23]} Rbe8 {[%emt 0:01:02]} 23. Qh5 {[%emt 0:00:49]} g6 {[%emt 0:02:22]} 24. Bxg6 {[%emt 0:00:28]} hxg6 {[%emt 0:00:01]} 25. Qxg6+ {[%emt 0:00:09]} Kf8 {[%emt 0:00:57]} 26. fxe5 {[%emt 0:01:10]} Qc6 {[%emt 0:01:01]} 27. exf6 {[%emt 0:01:01]} 1-0

[Event "4NCL Div 1 2024-25"]
[Site "England"]
[Date "2025.04.05"]
[Round "7.22"]
[White "Onslow, Alfie"]
[Black "Finn, Peter"]
[Result "0-1"]
[Annotator "ChessBase"]
[ECO "A11"]
[WhiteElo "2170"]
[BlackElo "2199"]
[PlyCount "54"]
[EventDate "2024.11.23"]
[EventType "team-tourn"]
[EventCountry "ENG"]
[SourceTitle "playchess.com"]
[Source "ChessBase"]
[SourceQuality "1"]
[TimeControl "40/6000+30:3000+30"]

1. Nf3 {[%emt 0:10:10]} d5 {[%emt 0:10:07]} 2. c4 {[%emt 0:00:16]} c6 {[%emt 0:00:13]} 3. g3 {[%emt 0:00:40]} Nf6 {[%emt 0:00:54]} 4. Bg2 {[%emt 0:00:37]} dxc4 {[%emt 0:00:56]} 5. O-O {[%emt 0:02:28]} Nbd7 {[%emt 0:01:32]} 6. Na3 {[%emt 0:03:27]} Nb6 {[%emt 0:00:34]} 7. Ne5 {[%emt 0:08:40]} Be6 {[%emt 0:29:19]} 8. Qc2 {[%emt 0:01:14]} Qd4 {[%emt 0:02:14]} 9. Nxc6 {[%emt 0:03:29]} bxc6 {[%emt 0:00:43]} 10. Bxc6+ {[%emt 0:00:06]} Nfd7 {[%emt 0:01:35]} 11. Bxa8 {[%emt 0:00:34]} Nxa8 {[%emt 0:00:13]} 12. d3 {[%emt 0:01:30]} Bh3 {[%emt 0:22:16]} 13. Rd1 {[%emt 0:15:12]} Qd5 {[%emt 0:00:31]} 14. e4 {[%emt 0:13:40]} Qh5 {[%emt 0:03:42]} 15. Nxc4 {[%emt 0:11:00]} e5 {[%emt 0:01:18]} 16. Ne3 {[%emt 0:13:13]} Bc5 {[%emt 0:01:29]} 17. b4 {[%emt 0:02:37]} Bxe3 {[%emt 0:07:34]} 18. fxe3 {[%emt 0:00:11]} O-O {[%emt 0:00:09]} 19. a4 {[%emt 0:04:51]} f5 {[%emt 0:05:08]} 20. exf5 {[%emt 0:01:21]} Qxf5 {[%emt 0:00:24]} 21. Ba3 {[%emt 0:04:02]} Nc7 {[%emt 0:03:31]} 22. b5 {[%emt 0:02:56]} Rf7 {[%emt 0:00:58]} 23. Re1 {[%emt 0:02:14]} Ne6 {[%emt 0:03:06]} 24. Rac1 {[%emt 0:02:18]} h5 {[%emt 0:02:43]} 25. Qe2 {[%emt 0:01:56]} Ng5 {[%emt 0:01:21]} 26. Rc8+ {[%emt 0:01:03]} Nf8 {[%emt 0:00:18]} 27. Rec1 {[%emt 0:00:42]} Bg4 {[%emt 0:01:41]} 0-1

[Event "4NCL Div 1 2024-25"]
[Site "England"]
[Date "2025.04.05"]
[Round "7.23"]
[White "Bashylina, Luisa"]
[Black "Hryshchenko, Kamila"]
[Result "1-0"]
[Annotator "ChessBase"]
[ECO "E73"]
[WhiteElo "2132"]
[BlackElo "2138"]
[PlyCount "115"]
[EventDate "2024.11.23"]
[EventType "team-tourn"]
[EventCountry "ENG"]
[SourceTitle "playchess.com"]
[Source "ChessBase"]
[SourceQuality "1"]
[TimeControl "40/6000+30:3000+30"]

1. d4 {[%emt 0:10:04]} g6 {[%emt 0:10:12]} 2. c4 {[%emt 0:00:06]} Bg7 {[%emt 0:00:05]} 3. e4 {[%emt 0:00:28]} d6 {[%emt 0:00:19]} 4. Nc3 {[%emt 0:00:06]} Nf6 {[%emt 0:02:51]} 5. Be2 {[%emt 0:00:08]} O-O {[%emt 0:00:12]} 6. Be3 {[%emt 0:00:04]} c5 {[%emt 0:00:42]} 7. d5 {[%emt 0:00:06]} e6 {[%emt 0:00:34]} 8. Nf3 {[%emt 0:00:07]} exd5 {[%emt 0:00:26]} 9. cxd5 {[%emt 0:00:08]} Re8 {[%emt 0:03:32]} 10. Nd2 {[%emt 0:00:10]} Na6 {[%emt 0:01:14]} 11. O-O {[%emt 0:01:51]} Nc7 {[%emt 0:04:58]} 12. a4 {[%emt 0:01:29]} Na6 {[%emt 0:16:04]} 13. f3 {[%emt 0:09:42]} Nb4 {[%emt 0:01:28]} 14. Nc4 {[%emt 0:00:52]} Re7 {[%emt 0:18:53]} 15. e5 {[%emt 0:07:52]} Ne8 {[%emt 0:25:07]} 16. exd6 {[%emt 0:10:54]} Rxe3 {[%emt 0:00:26]} 17. Nxe3 {[%emt 0:00:07]} Bd4 {[%emt 0:00:04]} 18. Qd2 {[%emt 0:00:38]} Nxd6 {[%emt 0:05:43]} 19. Kh1 {[%emt 0:02:28]} Qh4 {[%emt 0:06:07]} 20. f4 {[%emt 0:16:22]} Bd7 {[%emt 0:02:37]} 21. g3 {[%emt 0:04:24]} Qh3 {[%emt 0:01:30]} 22. Ng2 {[%emt 0:10:06]} Nf5 {[%emt 0:05:24]} 23. Rf3 {[%emt 0:02:12]} Nh6 {[%emt 0:00:23]} 24. Nh4 {[%emt 0:04:10]} Bg4 {[%emt 0:02:56]} 25. Rff1 {[%emt 0:01:17]} Rd8 {[%emt 0:00:11]} 26. Bc4 {[%emt 0:03:52]} Bf6 {[%emt 0:00:47]} 27. Nf3 {[%emt 0:01:19]} Nf5 {[%emt 0:00:36]} 28. Ne4 {[%emt 0:00:31]} Bg7 {[%emt 0:00:34]} 29. Nfg5 {[%emt 0:01:49]} Qh5 {[%emt 0:00:31]} 30. d6 {[%emt 0:01:38]} h6 {[%emt 0:00:03]} 31. Bxf7+ {[%emt 0:03:59]} Kh8 {[%emt 0:00:05]} 32. Ne6 {[%emt 0:00:21]} Bf3+ {[%emt 0:00:13]} 33. Rxf3 {[%emt 0:01:37]} Qxf3+ {[%emt 0:00:06]} 34. Qg2 {[%emt 0:00:07]} Qxg2+ {[%emt 0:01:12]} 35. Kxg2 {[%emt 0:00:05]} Rd7 {[%emt 0:01:19]} 36. Bxg6 {[%emt 0:03:14]} Bxb2 {[%emt 0:00:28]} 37. N6xc5 {[%emt 0:05:38]} Bxa1 {[%emt 0:00:35]} 38. Nxd7 {[%emt 0:00:13]} Ne3+ {[%emt 0:00:10]} 39. Kf3 {[%emt 0:00:10]} Nc4 {[%emt 0:00:16]} 40. Ndc5 {[%emt 0:00:58]} b6 {[%emt 0:00:33]} 41. d7 {[%emt 0:53:37]} Nc6 {[%emt 0:50:03]} 42. Nd3 {[%emt 0:00:00]} Kg7 {[%emt 0:00:00]} 43. Be8 {[%emt 0:00:00]} a6 {[%emt 0:00:00]} 44. Nb4 {[%emt 0:00:00]} Nd8 {[%emt 0:00:00]} 45. Nxa6 {[%emt 0:00:00]} Bd4 {[%emt 0:00:00]} 46. Nc7 {[%emt 0:00:00]} Nb2 {[%emt 0:00:00]} 47. f5 {[%emt 0:00:00]} Bf6 {[%emt 0:00:00]} 48. Nxf6 {[%emt 0:00:00]} Kxf6 {[%emt 0:00:00]} 49. Nd5+ {[%emt 0:00:00]} Kxf5 {[%emt 0:00:00]} 50. Nxb6 {[%emt 0:00:00]} Nd3 {[%emt 0:00:00]} 51. a5 {[%emt 0:00:00]} Nc5 {[%emt 0:00:00]} 52. Nd5 {[%emt 0:00:00]} Ke5 {[%emt 0:00:00]} 53. Nb4 {[%emt 0:00:00]} Nce6 {[%emt 0:00:00]} 54. a6 {[%emt 0:00:00]} Nc7 {[%emt 0:00:00]} 55. a7 {[%emt 0:00:00]} Na8 {[%emt 0:00:00]} 56. Bg6 {[%emt 0:00:00]} Kd6 {[%emt 0:00:00]} 57. Be4 {[%emt 0:00:00]} Nb6 {[%emt 0:00:00]} 58. Nc6 {[%emt 0:00:00]} 1-0

[Event "4NCL Div 1 2024-25"]
[Site "England"]
[Date "2025.04.05"]
[Round "7.24"]
[White "Varnam, Liam D"]
[Black "Patel, Zain"]
[Result "1-0"]
[Annotator "NA"]
[ECO "C60"]
[WhiteElo "2033"]
[BlackElo "2083"]
[PlyCount "89"]
[EventDate "2024.11.23"]
[EventType "team-tourn"]
[EventCountry "ENG"]
[SourceTitle "playchess.com"]
[Source "ChessBase"]
[SourceQuality "1"]
[TimeControl "40/6000+30:3000+30"]

1. e4 {[%emt 0:24:49]} e5 {[%emt 0:10:36]} 2. Nf3 {[%emt 0:00:19]} Nc6 {[%emt 0:00:38]} 3. Bb5 {[%emt 0:00:07]} Nge7 {[%emt 0:00:06]} 4. O-O {[%emt 0:00:48]} Ng6 {[%emt 0:00:26]} 5. c3 {[%emt 0:01:54]} a6 {[%emt 0:00:32]} 6. Ba4 {[%emt 0:01:31]} d5 {[%emt 0:00:06]} 7. d3 {[%emt 0:06:42]} dxe4 {[%emt 0:07:16]} 8. dxe4 {[%emt 0:02:23]} Qxd1 {[%emt 0:02:30]} 9. Rxd1 {[%emt 0:03:14]} f6 {[%emt 0:03:32]} 10. Be3 {[%emt 0:03:06]} Be6 {[%emt 0:04:30]} 11. Bb3 {[%emt 0:09:55]} Rd8 {[%emt 0:12:43]} 12. Nbd2 {[%emt 0:12:45]} Kf7 {[%emt 0:01:17]} 13. g3 {[%emt 0:04:39]} b5 {[%emt 0:05:01]} 14. Rdc1 {[%emt 0:11:54]} Na5 {[%emt 0:04:20]} 15. Bxe6+ {[%emt 0:02:04]} Kxe6 {[%emt 0:00:06]} 16. a4 {[%emt 0:00:53]} Nb7 {[%emt 0:11:01]} 17. axb5 {[%emt 0:10:02]} axb5 {[%emt 0:00:21]} 18. c4 {[%emt 0:00:51]} b4 {[%emt 0:06:22]} 19. Ra7 {[%emt 0:06:34]} Rb8 {[%emt 0:02:39]} 20. c5 {[%emt 0:00:16]} c6 {[%emt 0:01:14]} 21. Ra4 {[%emt 0:01:29]} Be7 {[%emt 0:13:04]} 22. Rxb4 {[%emt 0:00:26]} Nf8 {[%emt 0:03:17]} 23. Ra4 {[%emt 0:01:04]} Nd7 {[%emt 0:00:55]} 24. b4 {[%emt 0:00:20]} Rhc8 {[%emt 0:00:46]} 25. Rca1 {[%emt 0:01:28]} Nd8 {[%emt 0:01:04]} 26. Nc4 {[%emt 0:00:43]} g6 {[%emt 0:01:41]} 27. Bd2 {[%emt 0:00:37]} f5 {[%emt 0:01:25]} 28. exf5+ {[%emt 0:00:48]} gxf5 {[%emt 0:00:11]} 29. Bc3 {[%emt 0:00:43]} Bf6 {[%emt 0:00:54]} 30. Rd1 {[%emt 0:00:35]} e4 {[%emt 0:05:13]} 31. Rd6+ {[%emt 0:01:29]} Ke7 {[%emt 0:00:27]} 32. Bxf6+ {[%emt 0:00:53]} Nxf6 {[%emt 0:00:05]} 33. Nd4 {[%emt 0:00:15]} Nd5 {[%emt 0:05:52]} 34. Nxf5+ {[%emt 0:00:44]} Kf8 {[%emt 0:00:22]} 35. Ne5 {[%emt 0:00:56]} Rxb4 {[%emt 0:02:10]} 36. Ra7 {[%emt 0:00:22]} Nb7 {[%emt 0:02:20]} 37. Rxc6 {[%emt 0:00:34]} Rb1+ {[%emt 0:01:52]} 38. Kg2 {[%emt 0:00:04]} Rd8 {[%emt 0:00:49]} 39. Nd6 {[%emt 0:00:49]} Ne7 {[%emt 0:01:29]} 40. Rc7 {[%emt 0:00:50]} Nxc5 {[%emt 0:00:16]} 41. Nef7 {[%emt 0:22:44]} Rd7 {[%emt 0:30:10]} 42. Rxd7 {[%emt 0:02:53]} Nxd7 {[%emt 0:00:13]} 43. Rxd7 {[%emt 0:00:06]} Rb2 {[%emt 0:00:06]} 44. Ng5 {[%emt 0:01:18]} e3 {[%emt 0:01:40]} 45. Ne6+ {[%emt 0:00:17]} 1-0